Workbook

Sheet INGRESO DE DATOS
A12: INGRESE LOS DATOS DEL PROPUESTO ASEGURADO:
C14: Nombre del Asegurado Principal: | D14: Nombre
D16: Número de Adultos: | G16: 1 | H16: Número de Hijos: | J16: 0
F18: Edad de Titular: | G18: 40 | H18: Edad de Cónyuge: | J18: 46
F20: Descuento: | G20: 0
A23: INGRESE EL NOMBRE DE LA AGENCIA ASESORA:
C25: Intermediario: | D25: Agente / Agencia
A29: ESCOJA EL PRODUCTO PARA VISUALIZAR LA COTIZACION RESPECTIVA:

Sheet Essential Care
D8: Cotización de Seguro Médico Internacional
D9: BUPA Essential Care
A10: Bupa Essential Care
D11: Nombre del Asegurado: | E11: =+'INGRESO DE DATOS'!$D$14 -> Nombre
D13: Intermediario: | E13: =+'INGRESO DE DATOS'!$D$25 -> Agente / Agencia
D15: Fecha: | E15: =+TODAY() -> 2023-07-25 | G15: =IF('INGRESO DE DATOS'!G20>0,"Descuento","") ->  | H15: =IF('INGRESO DE DATOS'!G20>0,'INGRESO DE DATOS'!G20,"") -> 
F17: Numero de Adultos: | G17: =+'INGRESO DE DATOS'!$G$16 -> 1 | I17: Edad de Titular: | J17: =+'INGRESO DE DATOS'!$G$18 -> 40
F19: Numero de Hijos: | G19: =+'INGRESO DE DATOS'!$J$16 -> 0 | I19: Edad de Conyuge: | J19: =+'INGRESO DE DATOS'!$J$18 -> 46
H21: Complicaciones de Maternidad (planes 1, 2, y 3)
F22: TRUE
F23: TRUE | H23: Trasplante de Órganos
F24: FALSE
H25: Eliminación de Deducible
D26: Deducibles
E27: PLAN 1 | F27: PLAN 2 | G27: PLAN 3 | H27: PLAN 4 | I27: PLAN 5 | J27: PLAN 6
D28: Dentro del pais de residencia | E28: 250 | F28: 250 | G28: 1000 | H28: 5000 | I28: 10000 | J28: 20000
D29: Fuera del pais de residencia | E29: 1000 | F29: 5000 | G29: 10000 | H29: 5000 | I29: 10000 | J29: 20000
D31: Tarifas Anuales
D32: Prima Titular | E32: =VLOOKUP($J$17,Tablas!$A$274:$H$336,3,TRUE) -> 1769.76 | F32: =VLOOKUP($J$17,Tablas!$A$274:$H$336,4,TRUE) -> 1701.36 | G32: =VLOOKUP($J$17,Tablas!$A$274:$H$336,5,TRUE) -> 1578.24 | H32: =VLOOKUP($J$17,Tablas!$A$274:$H$336,6,TRUE) -> 1116.72 | I32: =VLOOKUP($J$17,Tablas!$A$274:$H$336,7,TRUE) -> 802.8 | J32: =VLOOKUP($J$17,Tablas!$A$274:$H$336,8,TRUE) -> 565.92
D33: Prima Cónyuge | E33: =IF($G$17=1,0,(VLOOKUP($J$19,Tablas!$A$274:$H$336,3,TRUE))) -> 0 | F33: =IF($G$17=1,0,(VLOOKUP($J$19,Tablas!$A$274:$H$336,4,TRUE))) -> 0 | G33: =IF($G$17=1,0,(VLOOKUP($J$19,Tablas!$A$274:$H$336,5,TRUE))) -> 0 | H33: =IF($G$17=1,0,(VLOOKUP($J$19,Tablas!$A$274:$H$336,6,TRUE))) -> 0 | I33: =IF($G$17=1,0,(VLOOKUP($J$19,Tablas!$A$274:$H$336,7,TRUE))) -> 0 | J33: =IF($G$17=1,0,(VLOOKUP($J$19,Tablas!$A$274:$H$336,8,TRUE))) -> 0
D34: Primas Hijos | E34: =IF($G$19=0,0,(VLOOKUP($G$19,Tablas!$A$337:$H$339,3,TRUE))) -> 0 | F34: =IF($G$19=0,0,(VLOOKUP($G$19,Tablas!$A$337:$H$339,4,TRUE))) -> 0 | G34: =IF($G$19=0,0,(VLOOKUP($G$19,Tablas!$A$337:$H$339,5,TRUE))) -> 0 | H34: =IF($G$19=0,0,(VLOOKUP($G$19,Tablas!$A$337:$H$339,6,TRUE))) -> 0 | I34: =IF($G$19=0,0,(VLOOKUP($G$19,Tablas!$A$337:$H$339,7,TRUE))) -> 0 | J34: =IF($G$19=0,0,(VLOOKUP($G$19,Tablas!$A$337:$H$339,8,TRUE))) -> 0
D35: Anexo: Complicaciones de Maternidad | E35: =+IF($F$22=FALSE,0,Tablas!C$340) -> 225 | F35: =+IF($F$22=FALSE,0,Tablas!D$340) -> 225 | G35: =+IF($F$22=FALSE,0,Tablas!E$340) -> 225 | H35: =+IF($F$22=FALSE,0,Tablas!F$340) -> 0 | I35: =+IF($F$22=FALSE,0,Tablas!G$340) -> 0 | J35: =+IF($F$22=FALSE,0,Tablas!H$340) -> 0
D36: Anexo: Trasplante Organos | E36: =IF($F$23=FALSE,0,Tablas!C$341) -> 300 | F36: =IF($F$23=FALSE,0,Tablas!D$341) -> 300 | G36: =IF($F$23=FALSE,0,Tablas!E$341) -> 300 | H36: =IF($F$23=FALSE,0,Tablas!F$341) -> 300 | I36: =IF($F$23=FALSE,0,Tablas!G$341) -> 300 | J36: =IF($F$23=FALSE,0,Tablas!H$341) -> 300
D37: Anexo: Eliminacion de Deducible | E37: =IF($F$24=FALSE,0,Tablas!C$342) -> 0 | F37: =IF($F$24=FALSE,0,Tablas!D$342) -> 0 | G37: =IF($F$24=FALSE,0,Tablas!E$342) -> 0 | H37: =IF($F$24=FALSE,0,Tablas!F$342) -> 0 | I37: =IF($F$24=FALSE,0,Tablas!G$342) -> 0 | J37: =IF($F$24=FALSE,0,Tablas!H$342) -> 0
D38: PRIMA NETA | E38: =SUM(E32:E37) -> 2294.76 | F38: 2226.36 | G38: 2103.24 | H38: 1416.72 | I38: 1102.8 | J38: 865.92
D39: =IF('INGRESO DE DATOS'!G20>0,"Descuento","") ->  | E39: =IF('INGRESO DE DATOS'!$G$20>0,-(E32+E33+E34)*'INGRESO DE DATOS'!$G$20,0) -> 0 | F39: =IF('INGRESO DE DATOS'!$G$20>0,-(F32+F33+F34)*'INGRESO DE DATOS'!$G$20,0) -> 0 | G39: =IF('INGRESO DE DATOS'!$G$20>0,-(G32+G33+G34)*'INGRESO DE DATOS'!$G$20,0) -> 0 | H39: =IF('INGRESO DE DATOS'!$G$20>0,-(H32+H33+H34)*'INGRESO DE DATOS'!$G$20,0) -> 0 | I39: =IF('INGRESO DE DATOS'!$G$20>0,-(I32+I33+I34)*'INGRESO DE DATOS'!$G$20,0) -> 0 | J39: =IF('INGRESO DE DATOS'!$G$20>0,-(J32+J33+J34)*'INGRESO DE DATOS'!$G$20,0) -> 0
D40: Costo Administrativo Anual | E40: 75 | F40: 75 | G40: 75 | H40: 75 | I40: 75 | J40: 75
D41: IVA (12%) | E41: =+(E38+E39+E40)*12% -> 284.3712 | F41: =+(F38+F39+F40)*12% -> 276.1632 | G41: =+(G38+G39+G40)*12% -> 261.3888 | H41: 179.0064 | I41: 141.336 | J41: =+(J38+J39+J40)*12% -> 112.9104
D42: TOTAL | E42: =SUM(E38:E41) -> 2654.1312 | F42: 2577.5232 | G42: 2439.6288 | H42: 1670.7264 | I42: 1319.136 | J42: 1053.8304
D44: Tarifas Semestrales
D45: Prima Titular | E45: =VLOOKUP($J$17,Tablas!$A$346:$H$408,3,TRUE) -> 937.9728 | F45: =VLOOKUP($J$17,Tablas!$A$346:$H$408,4,TRUE) -> 901.7208 | G45: =VLOOKUP($J$17,Tablas!$A$346:$H$408,5,TRUE) -> 836.4672 | H45: =VLOOKUP($J$17,Tablas!$A$346:$H$408,6,TRUE) -> 591.8616 | I45: =VLOOKUP($J$17,Tablas!$A$346:$H$408,7,TRUE) -> 425.484 | J45: =VLOOKUP($J$17,Tablas!$A$346:$H$408,8,TRUE) -> 299.9376
D46: Prima Cónyuge | E46: =IF($G$17=1,0,(VLOOKUP($J$19,Tablas!$A$346:$H$408,3,TRUE))) -> 0 | F46: =IF($G$17=1,0,(VLOOKUP($J$19,Tablas!$A$346:$H$408,4,TRUE))) -> 0 | G46: =IF($G$17=1,0,(VLOOKUP($J$19,Tablas!$A$346:$H$408,5,TRUE))) -> 0 | H46: =IF($G$17=1,0,(VLOOKUP($J$19,Tablas!$A$346:$H$408,6,TRUE))) -> 0 | I46: =IF($G$17=1,0,(VLOOKUP($J$19,Tablas!$A$346:$H$408,7,TRUE))) -> 0 | J46: =IF($G$17=1,0,(VLOOKUP($J$19,Tablas!$A$346:$H$408,8,TRUE))) -> 0
D47: Primas Hijos | E47: =IF($G$19=0,0,(VLOOKUP($G$19,Tablas!$A$409:$H$411,3,TRUE))) -> 0 | F47: =IF($G$19=0,0,(VLOOKUP($G$19,Tablas!$A$409:$H$411,4,TRUE))) -> 0 | G47: =IF($G$19=0,0,(VLOOKUP($G$19,Tablas!$A$409:$H$411,5,TRUE))) -> 0 | H47: =IF($G$19=0,0,(VLOOKUP($G$19,Tablas!$A$409:$H$411,6,TRUE))) -> 0 | I47: =IF($G$19=0,0,(VLOOKUP($G$19,Tablas!$A$409:$H$411,7,TRUE))) -> 0 | J47: =IF($G$19=0,0,(VLOOKUP($G$19,Tablas!$A$409:$H$411,8,TRUE))) -> 0
D48: Anexo: Complicaciones de Maternidad | E48: =+IF($F$22=FALSE,0,Tablas!C$412) -> 119.25 | F48: =+IF($F$22=FALSE,0,Tablas!D$412) -> 119.25 | G48: =+IF($F$22=FALSE,0,Tablas!E$412) -> 119.25 | H48: =+IF($F$22=FALSE,0,Tablas!F$412) -> 0 | I48: =+IF($F$22=FALSE,0,Tablas!G$412) -> 0 | J48: =+IF($F$22=FALSE,0,Tablas!H$412) -> 0
D49: Anexo: Trasplante Organos | E49: =IF($F$23=FALSE,0,Tablas!C$413) -> 159 | F49: =IF($F$23=FALSE,0,Tablas!D$413) -> 159 | G49: =IF($F$23=FALSE,0,Tablas!E$413) -> 159 | H49: =IF($F$23=FALSE,0,Tablas!F$413) -> 159 | I49: =IF($F$23=FALSE,0,Tablas!G$413) -> 159 | J49: =IF($F$23=FALSE,0,Tablas!H$413) -> 159
D50: Anexo: Eliminacion de Deducible | E50: =IF($F$24=FALSE,0,Tablas!C$414) -> 0 | F50: =IF($F$24=FALSE,0,Tablas!D$414) -> 0 | G50: =IF($F$24=FALSE,0,Tablas!E$414) -> 0 | H50: =IF($F$24=FALSE,0,Tablas!F$414) -> 0 | I50: =IF($F$24=FALSE,0,Tablas!G$414) -> 0 | J50: =IF($F$24=FALSE,0,Tablas!H$414) -> 0
D51: PRIMA NETA | E51: =SUM(E45:E50) -> 1216.2228 | F51: =SUM(F45:F50) -> 1179.9708 | G51: =SUM(G45:G50) -> 1114.7172 | H51: 750.8616 | I51: 584.484 | J51: 458.9376
D52: =IF('INGRESO DE DATOS'!G20>0,"Descuento","") ->  | E52: =IF('INGRESO DE DATOS'!$G$20>0,-(E45+E46+E47)*'INGRESO DE DATOS'!$G$20,0) -> 0 | F52: =IF('INGRESO DE DATOS'!$G$20>0,-(F45+F46+F47)*'INGRESO DE DATOS'!$G$20,0) -> 0 | G52: =IF('INGRESO DE DATOS'!$G$20>0,-(G45+G46+G47)*'INGRESO DE DATOS'!$G$20,0) -> 0 | H52: =IF('INGRESO DE DATOS'!$G$20>0,-(H45+H46+H47)*'INGRESO DE DATOS'!$G$20,0) -> 0 | I52: =IF('INGRESO DE DATOS'!$G$20>0,-(I45+I46+I47)*'INGRESO DE DATOS'!$G$20,0) -> 0 | J52: =IF('INGRESO DE DATOS'!$G$20>0,-(J45+J46+J47)*'INGRESO DE DATOS'!$G$20,0) -> 0
D53: Costo Administrativo Anual | E53: 75 | F53: 75 | G53: 75 | H53: 75 | I53: 75 | J53: 75
D54: IVA (12%) | E54: =+(E51+E52+E53)*12% -> 154.946736 | F54: =+(F51+F52+F53)*12% -> 150.596496 | G54: =+(G51+G52+G53)*12% -> 142.766064 | H54: =+(H51+H52+H53)*12% -> 99.103392 | I54: =+(I51+I52+I53)*12% -> 79.13808 | J54: =+(J51+J52+J53)*12% -> 64.072512
D55: (1ra Cuota) | E55: =SUM(E51:E54) -> 1446.169536 | F55: 1405.567296 | G55: 1332.483264 | H55: 924.964992 | I55: 738.62208 | J55: 598.010112
D56: (2da Cuota) | E56: =E51+E52+E54-(E53*0.12) -> 1362.169536 | F56: =F51+F52+F54-(F53*0.12) -> 1321.567296 | G56: =G51+G52+G54-(G53*0.12) -> 1248.483264 | H56: 840.964992 | I56: 654.62208 | J56: 514.010112
D57: TOTAL | E57: =SUM(E55:E56) -> 2808.339072 | F57: =SUM(F55:F56) -> 2727.134592 | G57: 2580.966528 | H57: 1765.929984 | I57: 1393.24416 | J57: 1112.020224
D60: Tarifas Trimestrales
D61: Prima Titular | E61: =VLOOKUP($J$17,Tablas!$A$991:$H$1053,3,TRUE) -> 486.684 | F61: =VLOOKUP($J$17,Tablas!$A$991:$H$1053,4,TRUE) -> 467.874 | G61: =VLOOKUP($J$17,Tablas!$A$991:$H$1053,5,TRUE) -> 434.016 | H61: =VLOOKUP($J$17,Tablas!$A$991:$H$1053,6,TRUE) -> 307.098 | I61: =VLOOKUP($J$17,Tablas!$A$991:$H$1053,7,TRUE) -> 220.77 | J61: =VLOOKUP($J$17,Tablas!$A$991:$H$1053,8,TRUE) -> 155.628
D62: Prima Cónyuge | E62: =IF($G$17=1,0,(VLOOKUP($J$19,Tablas!$A$991:$H$1053,3,TRUE))) -> 0 | F62: =IF($G$17=1,0,(VLOOKUP($J$19,Tablas!$A$991:$H$1053,4,TRUE))) -> 0 | G62: =IF($G$17=1,0,(VLOOKUP($J$19,Tablas!$A$991:$H$1053,5,TRUE))) -> 0 | H62: =IF($G$17=1,0,(VLOOKUP($J$19,Tablas!$A$991:$H$1053,6,TRUE))) -> 0 | I62: =IF($G$17=1,0,(VLOOKUP($J$19,Tablas!$A$991:$H$1053,7,TRUE))) -> 0 | J62: =IF($G$17=1,0,(VLOOKUP($J$19,Tablas!$A$991:$H$1053,8,TRUE))) -> 0
D63: Primas Hijos | E63: =IF($G$19=0,0,(VLOOKUP($G$19,Tablas!$A$1054:$H$1056,3,TRUE))) -> 0 | F63: =IF($G$19=0,0,(VLOOKUP($G$19,Tablas!$A$1054:$H$1056,4,TRUE))) -> 0 | G63: =IF($G$19=0,0,(VLOOKUP($G$19,Tablas!$A$1054:$H$1056,5,TRUE))) -> 0 | H63: =IF($G$19=0,0,(VLOOKUP($G$19,Tablas!$A$1054:$H$1056,6,TRUE))) -> 0 | I63: =IF($G$19=0,0,(VLOOKUP($G$19,Tablas!$A$1054:$H$1056,7,TRUE))) -> 0 | J63: =IF($G$19=0,0,(VLOOKUP($G$19,Tablas!$A$1054:$H$1056,8,TRUE))) -> 0
D64: Anexo: Complicaciones de Maternidad | E64: =+IF($F$22=FALSE,0,Tablas!C$1057) -> 61.875 | F64: =+IF($F$22=FALSE,0,Tablas!D$1057) -> 61.875 | G64: =+IF($F$22=FALSE,0,Tablas!E$1057) -> 61.875 | H64: =+IF($F$22=FALSE,0,Tablas!F$1057) -> 0 | I64: =+IF($F$22=FALSE,0,Tablas!G$1057) -> 0 | J64: =+IF($F$22=FALSE,0,Tablas!H$1057) -> 0
D65: Anexo: Trasplante Organos | E65: =IF($F$23=FALSE,0,Tablas!C$1058) -> 82.5 | F65: =IF($F$23=FALSE,0,Tablas!D$1058) -> 82.5 | G65: =IF($F$23=FALSE,0,Tablas!E$1058) -> 82.5 | H65: =IF($F$23=FALSE,0,Tablas!F$1058) -> 82.5 | I65: =IF($F$23=FALSE,0,Tablas!G$1058) -> 82.5 | J65: =IF($F$23=FALSE,0,Tablas!H$1058) -> 82.5
D66: Anexo: Eliminacion de Deducible | E66: =IF($F$24=FALSE,0,Tablas!C$1059) -> 0 | F66: =IF($F$24=FALSE,0,Tablas!D$1059) -> 0 | G66: =IF($F$24=FALSE,0,Tablas!E$1059) -> 0 | H66: =IF($F$24=FALSE,0,Tablas!F$1059) -> 0 | I66: =IF($F$24=FALSE,0,Tablas!G$1059) -> 0 | J66: =IF($F$24=FALSE,0,Tablas!H$1059) -> 0
D67: PRIMA NETA | E67: =SUM(E61:E66) -> 631.059 | F67: =SUM(F61:F66) -> 612.249 | G67: =SUM(G61:G66) -> 578.391 | H67: 389.598 | I67: 303.27 | J67: 238.128
D68: =IF('INGRESO DE DATOS'!G36>0,"Descuento","") ->  | E68: =IF('INGRESO DE DATOS'!$G$20>0,-(E61+E62+E63)*'INGRESO DE DATOS'!$G$20,0) -> 0 | F68: =IF('INGRESO DE DATOS'!$G$20>0,-(F61+F62+F63)*'INGRESO DE DATOS'!$G$20,0) -> 0 | G68: =IF('INGRESO DE DATOS'!$G$20>0,-(G61+G62+G63)*'INGRESO DE DATOS'!$G$20,0) -> 0 | H68: =IF('INGRESO DE DATOS'!$G$20>0,-(H61+H62+H63)*'INGRESO DE DATOS'!$G$20,0) -> 0 | I68: =IF('INGRESO DE DATOS'!$G$20>0,-(I61+I62+I63)*'INGRESO DE DATOS'!$G$20,0) -> 0 | J68: =IF('INGRESO DE DATOS'!$G$20>0,-(J61+J62+J63)*'INGRESO DE DATOS'!$G$20,0) -> 0
D69: Costo Administrativo Anual | E69: 75 | F69: 75 | G69: 75 | H69: 75 | I69: 75 | J69: 75
D70: IVA (12%) | E70: =+(E67+E68+E69)*12% -> 84.72708 | F70: =+(F67+F68+F69)*12% -> 82.46988 | G70: =+(G67+G68+G69)*12% -> 78.40692 | H70: 55.75176 | I70: 45.3924 | J70: =+(J67+J68+J69)*12% -> 37.57536
D71: (1ra Cuota) | E71: =SUM(E67:E70) -> 790.78608 | F71: 769.71888 | G71: 731.79792 | H71: 520.34976 | I71: 423.6624 | J71: 350.70336
D72: (2da a 4ta Cuota) | E72: =E67+E68+E70-(E69*0.12) -> 706.78608 | F72: =F67+F68+F70-(F69*0.12) -> 685.71888 | G72: =G67+G68+G70-(G69*0.12) -> 647.79792 | H72: 436.34976 | I72: 339.6624 | J72: 266.70336
D73: TOTAL | E73: =E71+E72*3 -> 2911.14432 | F73: =F71+F72*3 -> 2826.87552 | G73: 2675.19168 | H73: 1829.39904 | I73: 1442.6496 | J73: 1150.81344
D76: Tarifas en US $ - Efectivas partir del 1ro de enero de 2023
D77: Este presupuesto solamente tiene carácter informativo y en ningún momento expresa compromiso legal para suministrarle cobertura de seguro. La emisión de una póliza de seguro Bupa está sujeta a todas las evaluaciones de riesgo por parte de Bupa y a la recepción de todos los pagos de prima requeridos.
D81: Bupa Guatemala, Compañía de Seguros, S.A.
D82: 5 Avenida 5-55 Zona 14, Europlaza World Business Center, Torre 3, Nivel 11, Guatemala
D83: PBX: 2300-8000 / www.bupasalud.com / servicioguatemala@bupalatinamerica.com

Sheet Resumen tarifas anuales
C2: Cotización de Seguro Médico Internacional - BUPA Guatemala
C7: Nombre del Asegurado: | D7: =+'INGRESO DE DATOS'!$D$14 -> Nombre
C9: Intermediario: | D9: =+'INGRESO DE DATOS'!$D$25 -> Agente / Agencia
C11: Fecha: | D11: =+TODAY() -> 2023-07-25 | F11: =IF('INGRESO DE DATOS'!G20>0,"Descuento","") ->  | G11: =IF('INGRESO DE DATOS'!G20>0,'INGRESO DE DATOS'!G20,"") -> 
E13: Numero de Adultos: | F13: =+'INGRESO DE DATOS'!$G$16 -> 1 | H13: Edad de Titular: | I13: =+'INGRESO DE DATOS'!$G$18 -> 40
E15: Numero de Hijos: | F15: =+'INGRESO DE DATOS'!$J$16 -> 0 | H15: Edad de Conyuge: | I15: =+'INGRESO DE DATOS'!$J$18 -> 46
D17: DEDUCIBLES
D18: PLAN 1 | E18: PLAN 2 | F18: PLAN 3 | G18: PLAN 4 | H18: PLAN 5 | I18: PLAN 6
C19: Dentro del pais de residencia | D19: n/a | E19: 1000 | F19: 2000 | G19: 5000 | H19: 10000 | I19: 20000
C20: Fuera del pais de residencia | D20: n/a | E20: 2000 | F20: 3000 | G20: 5000 | H20: 10000 | I20: 20000
C23: TARIFAS ANUALES
C24: Classic Care | E24: =+#REF! ->  | F24: =+#REF! ->  | G24: =+#REF! ->  | H24: =+#REF! ->  | I24: =+#REF! -> 
C27: TARIFAS SEMIANUALES
C28: Classic Care | D28: 1ra. Cuota | E28: =+#REF! ->  | F28: =+#REF! ->  | G28: =+#REF! ->  | H28: =+#REF! ->  | I28: =+#REF! -> 
D29: 2da. Cuota | E29: =+#REF! ->  | F29: =+#REF! ->  | G29: =+#REF! ->  | H29: =+#REF! ->  | I29: =+#REF! -> 
D30: TOTAL | E30: =#REF! ->  | F30: =#REF! ->  | G30: =#REF! ->  | H30: =#REF! ->  | I30: =#REF! -> 
C32: TARIFAS TRIMESTRALES
C33: Classic Care | D33: 1ra. Cuota | E33: =+#REF! ->  | F33: =+#REF! ->  | G33: =+#REF! ->  | H33: =+#REF! ->  | I33: =+#REF! -> 
D34: 2da. a 4ta. Cuota | E34: =+#REF! ->  | F34: =+#REF! ->  | G34: =+#REF! ->  | H34: =+#REF! ->  | I34: =+#REF! -> 
D35: TOTAL | E35: =#REF! ->  | F35: =#REF! ->  | G35: =#REF! ->  | H35: =#REF! ->  | I35: =#REF! -> 
C38: Tarifas en US $ - Efectivas a partir del 1ro de enero de 2023
C39: Este presupuesto solamente tiene carácter informativo y en ningún momento expresa compromiso legal para suministrarle cobertura de seguro. La emisión de una póliza de seguro Bupa está sujeta a todas las evaluaciones de riesgo por parte de Bupa y a la recepción de todos los pagos de prima requeridos.
D43: PLAN 1 | E43: PLAN 2 | F43: PLAN 3 | G43: PLAN 4 | H43: PLAN 5 | I43: PLAN 6
B44: Dentro del pais de residencia | D44: 250 | E44: 250 | F44: 1000 | G44: 5000 | H44: 10000 | I44: 20000
B45: Fuera del pais de residencia | D45: 1000 | E45: 5000 | F45: 10000 | G45: 5000 | H45: 10000 | I45: 20000
C48: TARIFAS ANUALES
B49: Essential Care | D49: ='Essential Care'!E42 -> 2654.1312 | E49: ='Essential Care'!F42 -> 2577.5232 | F49: ='Essential Care'!G42 -> 2439.6288 | G49: ='Essential Care'!H42 -> 1670.7264 | H49: ='Essential Care'!I42 -> 1319.136 | I49: ='Essential Care'!J42 -> 1053.8304
C52: TARIFAS SEMIANUALES
B53: Essential Care | C53: 1ra. Cuota | D53: ='Essential Care'!E55 -> 1446.169536 | E53: ='Essential Care'!F55 -> 1405.567296 | F53: ='Essential Care'!G55 -> 1332.483264 | G53: ='Essential Care'!H55 -> 924.964992 | H53: ='Essential Care'!I55 -> 738.62208 | I53: ='Essential Care'!J55 -> 598.010112
C54: 2da. Cuota | D54: ='Essential Care'!E56 -> 1362.169536 | E54: ='Essential Care'!F56 -> 1321.567296 | F54: ='Essential Care'!G56 -> 1248.483264 | G54: ='Essential Care'!H56 -> 840.964992 | H54: ='Essential Care'!I56 -> 654.62208 | I54: ='Essential Care'!J56 -> 514.010112
C55: TOTAL | D55: ='Essential Care'!E57 -> 2808.339072 | E55: ='Essential Care'!F57 -> 2727.134592 | F55: ='Essential Care'!G57 -> 2580.966528 | G55: ='Essential Care'!H57 -> 1765.929984 | H55: ='Essential Care'!I57 -> 1393.24416 | I55: ='Essential Care'!J57 -> 1112.020224
C57: TARIFAS TRIMESTRALES
B58: Essential Care | C58: 1ra. Cuota | D58: ='Essential Care'!E71 -> 790.78608 | E58: ='Essential Care'!F71 -> 769.71888 | F58: ='Essential Care'!G71 -> 731.79792 | G58: ='Essential Care'!H71 -> 520.34976 | H58: ='Essential Care'!I71 -> 423.6624 | I58: ='Essential Care'!J71 -> 350.70336
C59: 2da. a 4ta. Cuota | D59: ='Essential Care'!E72 -> 706.78608 | E59: ='Essential Care'!F72 -> 685.71888 | F59: ='Essential Care'!G72 -> 647.79792 | G59: ='Essential Care'!H72 -> 436.34976 | H59: ='Essential Care'!I72 -> 339.6624 | I59: ='Essential Care'!J72 -> 266.70336
C60: TOTAL | D60: ='Essential Care'!E73 -> 2911.14432 | E60: ='Essential Care'!F73 -> 2826.87552 | F60: ='Essential Care'!G73 -> 2675.19168 | G60: ='Essential Care'!H73 -> 1829.39904 | H60: ='Essential Care'!I73 -> 1442.6496 | I60: ='Essential Care'!J73 -> 1150.81344
C63: Tarifas en US $ - Efectivas a partir del 1ro de enero de 2023
C64: Este presupuesto solamente tiene carácter informativo y en ningún momento expresa compromiso legal para suministrarle cobertura de seguro. La emisión de una póliza de seguro Bupa está sujeta a todas las evaluaciones de riesgo por parte de Bupa y a la recepción de todos los pagos de prima requeridos.
C67: Bupa Guatemala, Compañía de Seguros, S.A.
C68: 5 Avenida 5-55 Zona 14, Europlaza World Business Center, Torre 3, Nivel 11, Guatemala
C69: PBX: 2300-8000 / www.bupasalud.com / servicioguatemala@bupalatinamerica.com

Sheet Tablas (hidden)
A2: BUPA COMPLETE GUATEMALA | J2: FACTOR SEMESTRAL : | L2: 0.53
A3: TARIFAS ANUALES | I3: OK | J3: FACTOR TRIMESTRAL : | L3: 0.275
A4: EDAD
C5: DW1 | D5: DW2 | E5: DW3 | F5: DW4 | G5: DW5 | H5: DW6
A6: 18 | B6: - 24 | C6: 12140 | D6: 7386 | E6: 5058 | F6: 3643 | G6: 2581 | H6: 1973 | J6: Descuento (15%) | L6: 0.72
A7: 25 | B7: - 29 | C7: 12747 | D7: 7738 | E7: 5616 | F7: 4048 | G7: 2833 | H7: 2176
A8: 30 | B8: - 34 | C8: 13305 | D8: 8094 | E8: 6019 | F8: 4504 | G8: 3442 | H8: 2633
A9: 35 | B9: - 39 | C9: 14871 | D9: 9056 | E9: 6728 | F9: 5058 | G9: 3846 | H9: 2936
A10: 40 | B10: - 44 | C10: 16844 | D10: 10520 | E10: 7386 | F10: 5616 | G10: 4250 | H10: 3238
A11: 45 | B11: - 49 | C11: 18817 | D11: 11736 | E11: 8246 | F11: 6272 | G11: 4756 | H11: 3643
A12: 50 | B12: - 54 | C12: 24836 | D12: 15326 | E12: 10876 | F12: 8246 | G12: 6780 | H12: 5213
A13: 55 | B13: - 59 | C13: 26403 | D13: 16337 | E13: 11583 | F13: 8801 | G13: 7233 | H13: 5514
A14: 60 | C14: 28022 | D14: 17754 | E14: 12596 | F14: 10015 | G14: 8600 | H14: 6929
A15: 61 | C15: 30096 | D15: 19068 | E15: 13507 | F15: 10724 | G15: 9258 | H15: 7437
A16: 62 | C16: 32928 | D16: 20889 | E16: 14771 | F16: 11736 | G16: 10115 | H16: 8143
A17: 63 | C17: 35003 | D17: 22205 | E17: 15730 | F17: 12495 | G17: 10775 | H17: 8649
A18: 64 | C18: 37886 | D18: 24026 | E18: 16996 | F18: 13507 | G18: 11635 | H18: 9359
A19: 65 | C19: 39704 | D19: 31412 | E19: 22205 | F19: 17097 | G19: 15529 | H19: 13201
A20: 66 | C20: 41475 | D20: 36519 | E20: 25797 | F20: 19878 | G20: 18059 | H20: 15326
A21: 67 | C21: 45320 | D21: 39858 | E21: 28174 | F21: 21698 | G21: 19727 | H21: 16743
A22: 68 | C22: 50125 | D22: 44156 | E22: 31207 | F22: 24026 | G22: 21851 | H22: 18564
A23: 69 | C23: 55130 | D23: 48558 | E23: 34294 | F23: 26454 | G23: 24026 | H23: 20383
A24: 70 | C24: 65249 | D24: 59785 | E24: 41778 | F24: 31106 | G24: 27971 | H24: 23975
A25: 71 | C25: 67829 | D25: 62112 | E25: 43400 | F25: 32322 | G25: 29085 | H25: 24937
A26: 72 | C26: 69750 | D26: 63882 | E26: 44662 | F26: 33232 | G26: 29893 | H26: 25645
A27: 73 | C27: 72279 | D27: 66209 | E27: 46282 | F27: 34447 | G27: 31005 | H27: 26606
A28: 74 | C28: 73593 | D28: 67424 | E28: 47091 | F28: 35104 | G28: 31562 | H28: 27061
A29: 75 | B29: o más | C29: 76781 | D29: 70357 | E29: 49163 | F29: 36619 | G29: 32928 | H29: 28224
A30: 1 | B30: Hijo | C30: 2270 | D30: 4097 | E30: 1872 | F30: 1469 | G30: 1266 | H30: 911
A31: 2 | B31: Hijos | C31: 3566 | D31: 6424 | E31: 2985 | F31: 2329 | G31: 1973 | H31: 1469
A32: 3 | B32: Hijos o más | C32: 5193 | D32: 9359 | E32: 4351 | F32: 3442 | G32: 2883 | H32: 2127
A33: 1 | B33: Rider Comp. Maternidad | C33: 0 | D33: 0 | E33: 0 | F33: 225 | G33: 225 | H33: 225
A34: 1 | B34: Transplante de organos | C34: 0 | D34: 0 | E34: 0 | F34: 0 | G34: 0 | H34: 0
A36: TARIFAS SEMESTRALES
A37: EDAD
C38: DW1 | D38: DW2 | E38: DW3 | F38: DW4 | G38: DW5 | H38: DW6
A39: 18 | B39: - 24 | C39: 4135.59 | D39: 3251.55 | E39: 2226.53 | F39: 1603.78 | G39: 1135.79 | H39: 868.14
A40: 25 | B40: - 29 | C40: 4342.29 | D40: 3406.84 | E40: 2472.45 | F40: 1781.86 | G40: 1247.09 | H40: 957.71
A41: 30 | B41: - 34 | C41: 4532.03 | D41: 3563.19 | E41: 2650 | F41: 1982.73 | G41: 1514.74 | H41: 1158.58
A42: 35 | B42: - 39 | C42: 5066.27 | D42: 3986.66 | E42: 2961.64 | F42: 2226.53 | G42: 1692.82 | H42: 1292.14
A43: 40 | B43: - 44 | C43: 5738.31 | D43: 4631.67 | E43: 3251.55 | F43: 2472.45 | G43: 1870.37 | H43: 1425.17
A44: 45 | B44: - 49 | C44: 6410.35 | D44: 5166.97 | E44: 3629.97 | F44: 2761.3 | G44: 2093.5 | H44: 1603.78
A45: 50 | B45: - 54 | C45: 8460.92 | D45: 6747.43 | E45: 4788.02 | F45: 3629.97 | G45: 2984.43 | H45: 2294.37
A46: 55 | B46: - 59 | C46: 8994.63 | D46: 7192.63 | E46: 5099.66 | F46: 3874.83 | G46: 3184.24 | H46: 2427.4
A47: 60 | C47: 9546.36 | D47: 7816.44 | E47: 5545.39 | F47: 4409.07 | G47: 3785.79 | H47: 3050.68
A48: 61 | C48: 10252.85 | D48: 8395.2 | E48: 5946.6 | F48: 4721.24 | G48: 4075.7 | H48: 3273.81
A49: 62 | C49: 11217.98 | D49: 9197.09 | E49: 6503.1 | F49: 5166.97 | G49: 4453.06 | H49: 3584.92
A50: 63 | C50: 11924.47 | D50: 9775.85 | E50: 6925.51 | F50: 5500.87 | G50: 4743.5 | H50: 3808.05
A51: 64 | C51: 12906.56 | D51: 10577.74 | E51: 7482.54 | F51: 5946.6 | G51: 5122.45 | H51: 4120.22
A52: 65 | C52: 13526.66 | D52: 13829.82 | E52: 9775.85 | F52: 7527.06 | G52: 6837 | H52: 5811.98
A53: 66 | C53: 14129.8 | D53: 16078.61 | E53: 11357.37 | F53: 8751.89 | G53: 7950.53 | H53: 6747.43
A54: 67 | C54: 15439.43 | D54: 17548.83 | E54: 12404.12 | F54: 9553.25 | G54: 8685.11 | H54: 7371.24
A55: 68 | C55: 17076.6 | D55: 19440.93 | E55: 13739.72 | F55: 10577.74 | G55: 9620.56 | H55: 8173.13
A56: 69 | C56: 18782.14 | D56: 21379.14 | E56: 15098.64 | F56: 11646.75 | G56: 10577.74 | H56: 8973.96
A57: 70 | C57: 22228.73 | D57: 26322.45 | E57: 18394.18 | F57: 13695.2 | G57: 12315.08 | H57: 10555.48
A58: 71 | C58: 23107.47 | D58: 27346.94 | E58: 19108.09 | F58: 14230.5 | G58: 12805.33 | H58: 10978.95
A59: 72 | C59: 23762.55 | D59: 28126.57 | E59: 19663.53 | F59: 14631.18 | G59: 13160.96 | H59: 11290.59
A60: 73 | C60: 24623.8 | D60: 29150.53 | E60: 20376.91 | F60: 15165.95 | G60: 13651.21 | H60: 11713.53
A61: 74 | C61: 25071.65 | D61: 29685.83 | E61: 20733.07 | F61: 15455.33 | G61: 13896.07 | H61: 11914.4
A62: 75 | B62: o más | C62: 26157.62 | D62: 30976.91 | E62: 21645.73 | F62: 16122.6 | G62: 14497.62 | H62: 12426.38
A63: 1 | B63: Hijo | C63: 1395.49 | D63: 1135.79 | E63: 824.15 | F63: 646.07 | G63: 557.03 | H63: 400.68
A64: 2 | B64: Hijos | C64: 2188.37 | D64: 1803.06 | E64: 1313.87 | F64: 1025.02 | G64: 868.14 | H64: 646.07
A65: 3 | B65: Hijos o más | C65: 3187.95 | D65: 2627.21 | E65: 1915.42 | F65: 1514.74 | G65: 1268.82 | H65: 935.98
A66: 1 | B66: Rider Comp. Maternidad | C66: =+C33*$L$2 -> 0 | D66: 0 | E66: 0 | F66: 119.25 | G66: 119.25 | H66: 119.25
A67: 1 | B67: Transplante de organos | C67: 0 | D67: 0 | E67: 0 | F67: 0 | G67: 0 | H67: 0
A69: DIAMOND (LATINAMERICA ONLY)
A70: TARIFAS ANUALES
A71: EDAD
C72: DL1 | D72: DL2 | E72: DL3 | F72: DL4 | G72: DL5 | H72: DL6
A73: 18 | B73: - 24 | C73: 4794 | D73: 2952 | E73: 1949 | F73: 1401 | G73: 993 | H73: 779
A74: 25 | B74: - 29 | C74: 5028 | D74: 3097 | E74: 2156 | F74: 1553 | G74: 1103 | H74: 867
A75: 30 | B75: - 34 | C75: 5200 | D75: 3223 | E75: 2312 | F75: 1743 | G75: 1322 | H75: 1041
A76: 35 | B76: - 39 | C76: 5816 | D76: 3609 | E76: 2590 | F76: 1951 | G76: 1483 | H76: 1168
A77: 40 | B77: - 44 | C77: 6733 | D77: 4186 | E77: 2831 | F77: 2168 | G77: 1630 | H77: 1284
A78: 45 | B78: - 49 | C78: 7517 | D78: 4680 | E78: 3168 | F78: 2425 | G78: 1824 | H78: 1436
A79: 50 | B79: - 54 | C79: 9772 | D79: 5991 | E79: 4158 | F79: 3164 | G79: 2578 | H79: 2033
A80: 55 | B80: - 59 | C80: 10394 | D80: 6374 | E80: 4426 | F80: 3365 | G80: 2744 | H80: 2164
A81: 60 | C81: 11056 | D81: 6945 | E81: 4828 | F81: 3871 | G81: 3307 | H81: 2688
A82: 61 | C82: 11876 | D82: 7463 | E82: 5187 | F82: 4159 | G82: 3555 | H82: 2886
A83: 62 | C83: 12994 | D83: 8172 | E83: 5684 | F83: 4557 | G83: 3892 | H83: 3162
A84: 63 | C84: 13812 | D84: 8687 | E84: 6042 | F84: 4844 | G84: 4139 | H84: 3362
A85: 64 | C85: 14936 | D85: 9396 | E85: 6539 | F85: 5242 | G85: 4475 | H85: 3639
A86: 65 | C86: 15651 | D86: 12288 | E86: 8530 | F86: 6629 | G86: 5974 | H86: 5139
A87: 66 | C87: 16363 | D87: 14275 | E87: 9911 | F87: 7703 | G87: 6942 | H87: 5968
A88: 67 | C88: 17867 | D88: 15595 | E88: 10826 | F88: 8416 | G88: 7581 | H88: 6521
A89: 68 | C89: 19780 | D89: 17268 | E89: 11986 | F89: 9320 | G89: 8398 | H89: 7220
A90: 69 | C90: 21758 | D90: 18999 | E90: 13190 | F90: 10254 | G90: 9240 | H90: 7945
A91: 70 | C91: 25748 | D91: 23384 | E91: 16061 | F91: 12071 | G91: 10768 | H91: 9345
A92: 71 | C92: 26759 | D92: 24303 | E92: 16691 | F92: 12545 | G92: 11190 | H92: 9716
A93: 72 | C93: 27512 | D93: 24990 | E93: 17164 | F93: 12900 | G93: 11507 | H93: 9987
A94: 73 | C94: 28525 | D94: 25911 | E94: 17793 | F94: 13375 | G94: 11931 | H94: 10356
A95: 74 | C95: 29026 | D95: 26368 | E95: 18111 | F95: 13609 | G95: 12143 | H95: 10540
A96: 75 | B96: o más | C96: 30287 | D96: 27515 | E96: 18898 | F96: 14204 | G96: 12670 | H96: 11001
A97: 1 | B97: Hijo | C97: 1660 | D97: 1027 | E97: 758 | F97: 629 | G97: 527 | H97: 413
A98: 2 | B98: Hijos | C98: 2608 | D98: 1634 | E98: 1204 | F98: 999 | G98: 841 | H98: 656
A99: 3 | B99: Hijos o más | C99: 3798 | D99: 2395 | E99: 1766 | F99: 1465 | G99: 1234 | H99: 961
A100: 1 | B100: Rider Comp. Maternidad | C100: 0 | D100: 0 | E100: 0 | F100: 225 | G100: 225 | H100: 225
A101: 1 | B101: Transplante de organos | C101: 0 | D101: 0 | E101: 0 | F101: 0 | G101: 0 | H101: 0
A103: TARIFAS SEMESTRALES
A104: EDAD
C105: DL1 | D105: DL2 | E105: DL3 | F105: DL4 | G105: DL5 | H105: DL6
A106: 18 | B106: - 24 | C106: =+C73*$L$2 -> 2540.82 | D106: 1564.56 | E106: 1032.97 | F106: 742.53 | G106: 526.29 | H106: 412.87
A107: 25 | B107: - 29 | C107: 2664.84 | D107: 1641.41 | E107: 1142.68 | F107: 823.09 | G107: 584.59 | H107: 459.51
A108: 30 | B108: - 34 | C108: 2756 | D108: 1708.19 | E108: 1225.36 | F108: 923.79 | G108: 700.66 | H108: 551.73
A109: 35 | B109: - 39 | C109: 3082.48 | D109: 1912.77 | E109: 1372.7 | F109: 1034.03 | G109: 785.99 | H109: 619.04
A110: 40 | B110: - 44 | C110: 3568.49 | D110: 2218.58 | E110: 1500.43 | F110: 1149.04 | G110: 863.9 | H110: 680.52
A111: 45 | B111: - 49 | C111: 3984.01 | D111: 2480.4 | E111: 1679.04 | F111: 1285.25 | G111: 966.72 | H111: 761.08
A112: 50 | B112: - 54 | C112: 5179.16 | D112: 3175.23 | E112: 2203.74 | F112: 1676.92 | G112: 1366.34 | H112: 1077.49
A113: 55 | B113: - 59 | C113: 5508.82 | D113: 3378.22 | E113: 2345.78 | F113: 1783.45 | G113: 1454.32 | H113: 1146.92
A114: 60 | C114: 5859.68 | D114: 3680.85 | E114: 2558.84 | F114: 2051.63 | G114: 1752.71 | H114: 1424.64
A115: 61 | C115: 6294.28 | D115: 3955.39 | E115: 2749.11 | F115: 2204.27 | G115: 1884.15 | H115: 1529.58
A116: 62 | C116: =+C83*$L$2 -> 6886.82 | D116: 4331.16 | E116: 3012.52 | F116: 2415.21 | G116: 2062.76 | H116: 1675.86
A117: 63 | C117: 7320.36 | D117: 4604.11 | E117: 3202.26 | F117: 2567.32 | G117: 2193.67 | H117: 1781.86
A118: 64 | C118: 7916.08 | D118: 4979.88 | E118: 3465.67 | F118: 2778.26 | G118: 2371.75 | H118: 1928.67
A119: 65 | C119: 8295.03 | D119: 6512.64 | E119: 4520.9 | F119: 3513.37 | G119: 3166.22 | H119: 2723.67
A120: 66 | C120: 8672.39 | D120: 7565.75 | E120: 5252.83 | F120: 4082.59 | G120: 3679.26 | H120: 3163.04
A121: 67 | C121: 9469.51 | D121: 8265.35 | E121: 5737.78 | F121: 4460.48 | G121: 4017.93 | H121: 3456.13
A122: 68 | C122: 10483.4 | D122: 9152.04 | E122: 6352.58 | F122: 4939.6 | G122: 4450.94 | H122: 3826.6
A123: 69 | C123: 11531.74 | D123: 10069.47 | E123: 6990.7 | F123: 5434.62 | G123: 4897.2 | H123: 4210.85
A124: 70 | C124: 13646.44 | D124: 12393.52 | E124: 8512.33 | F124: 6397.63 | G124: 5707.04 | H124: 4952.85
A125: 71 | C125: 14182.27 | D125: 12880.59 | E125: 8846.23 | F125: 6648.85 | G125: 5930.7 | H125: 5149.48
A126: 72 | C126: =+C93*$L$2 -> 14581.36 | D126: 13244.7 | E126: 9096.92 | F126: 6837 | G126: 6098.71 | H126: 5293.11
A127: 73 | C127: 15118.25 | D127: 13732.83 | E127: 9430.29 | F127: 7088.75 | G127: 6323.43 | H127: 5488.68
A128: 74 | C128: 15383.78 | D128: 13975.04 | E128: 9598.83 | F128: 7212.77 | G128: 6435.79 | H128: 5586.2
A129: 75 | B129: o más | C129: 16052.11 | D129: 14582.95 | E129: 10015.94 | F129: 7528.12 | G129: 6715.1 | H129: 5830.53
A130: 1 | B130: Hijo | C130: 879.8 | D130: 544.31 | E130: 401.74 | F130: 333.37 | G130: 279.31 | H130: 218.89
A131: 2 | B131: Hijos | C131: 1382.24 | D131: 866.02 | E131: 638.12 | F131: 529.47 | G131: 445.73 | H131: 347.68
A132: 3 | B132: Hijos o más | C132: 2012.94 | D132: 1269.35 | E132: 935.98 | F132: 776.45 | G132: 654.02 | H132: 509.33
A133: 1 | B133: Rider Comp. Maternidad | C133: 0 | D133: 0 | E133: 0 | F133: 119.25 | G133: 119.25 | H133: 119.25
A134: 1 | B134: Transplante de organos | C134: 0 | D134: 0 | E134: 0 | F134: 0 | G134: 0 | H134: 0
A136: BUPA SECURE GUATEMALA
A137: TARIFAS ANUALES
A138: EDAD | I138: OK
C139: CW1 | D139: CW2 | E139: CW3 | F139: CW4 | G139: CW5 | H139: CW6
A140: 18 | B140: - 24 | C140: 4209 | D140: 3551 | E140: 2780 | F140: 2126 | G140: 1854 | H140: 1389
A141: 25 | B141: - 29 | C141: 4670 | D141: 3900 | E141: 3127 | F141: 2393 | G141: 2047 | H141: 1545
A142: 30 | B142: - 34 | C142: 5368 | D142: 4479 | E142: 3668 | F142: 2780 | G142: 2393 | H142: 1816
A143: 35 | B143: - 39 | C143: 5945 | D143: 4943 | E143: 4131 | F143: 3090 | G143: 2664 | H143: 2006
A144: 40 | B144: - 44 | C144: 6718 | D144: 5520 | E144: 4711 | F144: 3477 | G144: 3012 | H144: 2279
A145: 45 | B145: - 49 | C145: 7798 | D145: 6371 | E145: 5520 | F145: 4054 | G145: 3514 | H145: 2626
A146: 50 | B146: - 54 | C146: 8531 | D146: 6951 | E146: 6062 | F146: 4441 | G146: 3823 | H146: 2896
A147: 55 | B147: - 59 | C147: 10038 | D147: 8184 | E147: 7256 | F147: 5251 | G147: 4556 | H147: 3399
A148: 60 | C148: 10617 | D148: 8571 | E148: 7760 | F148: 5560 | G148: 4827 | H148: 3591
A149: 61 | C149: 11929 | D149: 9652 | E149: 8725 | F149: 6294 | G149: 5406 | H149: 4054
A150: 62 | C150: 13280 | D150: 10731 | E150: 9690 | F150: 6989 | G150: 6024 | H150: 4517
A151: 63 | C151: 14592 | D151: 11776 | E151: 10655 | F151: 7683 | G151: 6641 | H151: 4980
A152: 64 | C152: 15943 | D152: 12855 | E152: 11658 | F152: 8377 | G152: 7256 | H152: 5444
A153: 65 | C153: 15984 | D153: 12894 | E153: 11735 | F153: 8455 | G153: 7298 | H153: 5444
A154: 66 | C154: 16059 | D154: 12894 | E154: 11852 | F154: 8493 | G154: 7335 | H154: 5444
A155: 67 | C155: 17833 | D155: 14321 | E155: 13202 | F155: 9420 | G155: 8145 | H155: 6062
A156: 68 | C156: 19611 | D156: 15749 | E156: 14514 | F156: 10384 | G156: 8957 | H156: 6681
A157: 69 | C157: 20538 | D157: 16483 | E157: 15172 | F157: 10849 | G157: 9381 | H157: 6989
A158: 70 | C158: 20653 | D158: 16522 | E158: 15404 | F158: 10965 | G158: 9457 | H158: 7026
A159: 71 | C159: 23277 | D159: 18570 | E159: 17373 | F159: 12353 | G159: 10655 | H159: 7916
A160: 72 | C160: 25865 | D160: 20653 | E160: 19303 | F160: 13703 | G160: 11813 | H160: 8801
A161: 73 | C161: 28451 | D161: 22739 | E161: 21231 | F161: 15095 | G161: 13009 | H161: 9690
A162: 74 | C162: 31036 | D162: 24784 | E162: 23162 | F162: 16483 | G162: 14205 | H162: 10579
A163: 75 | B163: o más | C163: 33893 | D163: 27023 | E163: 25402 | F163: 18027 | G163: 15519 | H163: 11544
A164: 1 | B164: Hijo | C164: 1892 | D164: 1698 | E164: 1005 | F164: 850 | G164: 734 | H164: 542
A165: 2 | B165: Hijos | C165: 3127 | D165: 2896 | E165: 1508 | F165: 1352 | G165: 1159 | H165: 850
A166: 3 | B166: Hijos o más | C166: 4556 | D166: 4246 | E166: 2163 | F166: 1969 | G166: 1698 | H166: 1275
A167: 1 | B167: Rider Comp. Maternidad | C167: 0 | D167: 225 | E167: 225 | F167: 225 | G167: 225 | H167: 225
A168: 1 | B168: Transplante de organos | C168: 0 | D168: 0 | E168: 0 | F168: 0 | G168: 0 | H168: 0
A170: TARIFAS SEMESTRALES | I170: PENDIENTE
A171: EDAD
C172: CW1 | D172: CW2 | E172: CW3 | F172: CW4 | G172: CW5 | H172: CW6
A173: 18 | B173: - 24 | C173: 1408.21 | D173: 1562.97 | E173: 1223.77 | F173: 935.45 | G173: 816.2 | H173: 611.09
A174: 25 | B174: - 29 | C174: 1562.97 | D174: 1716.67 | E174: 1376.41 | F174: 1053.11 | G174: 901 | H174: 679.99
A175: 30 | B175: - 34 | C175: 1795.64 | D175: 1971.6 | E175: 1614.38 | F175: 1223.77 | G175: 1053.11 | H175: 799.24
A176: 35 | B176: - 39 | C176: 1989.09 | D176: 2175.65 | E176: 1818.43 | F176: 1359.98 | G176: 1172.89 | H176: 882.98
A177: 40 | B177: - 44 | C177: 2247.73 | D177: 2430.05 | E177: 2073.89 | F177: 1530.11 | G177: 1325.53 | H177: 1002.76
A178: 45 | B178: - 49 | C178: 2609.19 | D178: 2804.76 | E178: 2430.05 | F178: 1784.51 | G178: 1546.54 | H178: 1155.93
A179: 50 | B179: - 54 | C179: 2854.58 | D179: 3059.69 | E179: 2668.55 | F179: 1954.64 | G179: 1682.75 | H179: 1274.65
A180: 55 | B180: - 59 | C180: 3358.61 | D180: 3602.94 | E180: 3194.31 | F180: 2311.33 | G180: 2005.52 | H180: 1496.19
A181: 60 | C181: 3552.59 | D181: 3773.07 | E181: 3415.85 | F181: 2447.54 | G181: 2124.77 | H181: 1580.99
A182: 61 | C182: 3991.43 | D182: 4249.01 | E182: 3840.91 | F182: 2770.84 | G182: 2379.7 | H182: 1784.51
A183: 62 | C183: 4443.52 | D183: 4724.42 | E183: 4265.97 | F183: 3076.65 | G183: 2651.59 | H183: 1988.56
A184: 63 | C184: 4882.89 | D184: 5184.46 | E184: 4691.03 | F184: 3382.46 | G184: 2923.48 | H184: 2192.08
A185: 64 | C185: 5334.98 | D185: 5659.34 | E185: 5132.52 | F185: 3687.74 | G185: 3194.31 | H185: 2396.66
A186: 65 | C186: 5348.23 | D186: 5676.83 | E186: 5166.44 | F186: 3722.19 | G186: 3212.86 | H186: 2396.66
A187: 66 | C187: 5373.67 | D187: 5676.83 | E187: 5217.85 | F187: 3739.15 | G187: 3229.29 | H187: 2396.66
A188: 67 | C188: 5967.8 | D188: 6304.88 | E188: 5812.51 | F188: 4147.25 | G188: 3585.98 | H188: 2668.55
A189: 68 | C189: 6562.46 | D189: 6933.99 | E189: 6390.21 | F189: 4571.78 | G189: 3943.2 | H189: 2940.97
A190: 69 | C190: 6872.51 | D190: 7256.76 | E190: 6679.59 | F190: 4776.36 | G190: 4129.76 | H190: 3076.65
A191: 70 | C191: 6911.2 | D191: 7274.25 | E191: 6781.88 | F191: 4827.24 | G191: 4163.68 | H191: 3093.08
A192: 71 | C192: 7789.41 | D192: 8175.78 | E192: 7648.43 | F192: 5438.33 | G192: 4691.03 | H192: 3484.75
A193: 72 | C193: 8654.9 | D193: 9093.21 | E193: 8498.55 | F193: 6032.99 | G193: 5200.89 | H193: 3874.83
A194: 73 | C194: 9520.39 | D194: 10011.17 | E194: 9347.61 | F194: 6645.67 | G194: 5727.18 | H194: 4265.97
A195: 74 | C195: 10385.88 | D195: 10911.64 | E195: 10197.73 | F195: 7256.76 | G195: 6254 | H195: 4657.11
A196: 75 | B196: o más | C196: 11342 | D196: 11897.44 | E196: 11183.53 | F196: 7936.75 | G196: 6832.23 | H196: 5082.17
A197: 1 | B197: Hijo | C197: 632.82 | D197: 747.3 | E197: 442.02 | F197: 373.65 | G197: 322.77 | H197: 237.97
A198: 2 | B198: Hijos | C198: 1046.22 | D198: 1274.65 | E198: 663.56 | F198: 594.66 | G198: 509.86 | H198: 373.65
A199: 3 | B199: Hijos o más | C199: 1524.28 | D199: 1869.31 | E199: 951.88 | F199: 866.55 | G199: 747.3 | H199: 560.74
A200: 1 | B200: Rider Comp. Maternidad | C200: =+C167*$L$2 -> 0 | D200: 119.25 | E200: 119.25 | F200: 119.25 | G200: 119.25 | H200: 119.25
A201: 1 | B201: Transplante de organos | C201: 0 | D201: 0 | E201: 0 | F201: 0 | G201: 0 | H201: 0
A203: COMPLETE (LATINAMERICA ONLY)
A204: TARIFAS ANUALES
A205: EDAD
C206: CL1 | D206: CL2 | E206: CL3 | F206: CL4 | G206: CL5 | H206: CL6
A207: 18 | B207: - 24 | C207: 4108 | D207: 2493 | E207: 1711 | F207: 1222 | G207: 864 | H207: 656
... 914 more rows
